[Event "Faroese-ch Candidates 2025"]
[Site "Torshavn"]
[Date "2025.04.14"]
[Round "3.3"]
[White "Hojgaard, Brandur"]
[Black "Lamhauge, Eydun"]
[Result "1/2-1/2"]
[Annotator "NA RC"]
[ECO "A48"]
[WhiteElo "1861"]
[BlackElo "1829"]
[PlyCount "87"]
[EventDate "2025.04.11"]
[EventType "tourn"]
[EventCountry "FAI"]
[SourceTitle "playchess.com"]
[Source "ChessBase"]
[SourceQuality "1"]
[TimeControl "40/5400+30:900+30"]

1. d4 {[%emt 0:06:12]} Nf6 {[%emt 0:00:34]} 2. Bf4 {[%emt 0:01:41]} g6 {[%emt 0:01:43]} 3. Nd2 {[%emt 0:00:16]} Bg7 {[%emt 0:00:58]} 4. Ngf3 {[%emt 0:03:00]} O-O {[%emt 0:01:37]} 5. e4 {[%emt 0:03:03]} d6 {[%emt 0:01:35]} 6. c3 {[%emt 0:02:44]} e5 {[%emt 0:07:57]} 7. dxe5 {[%emt 0:04:45]} dxe5 {[%emt 0:01:58]} 8. Bg5 {[%emt 0:09:27]} Nbd7 {[%emt 0:03:56]} 9. Qc2 {[%emt 0:05:05]} a5 {[%emt 0:05:26]} 10. Be2 {[%emt 0:04:30]} h6 {[%emt 0:02:20]} 11. Bh4 {[%emt 0:00:38]} g5 {[%emt 0:01:43]} 12. Bg3 {[%emt 0:00:14]} Qe7 {[%emt 0:06:42]} 13. h4 {[%emt 0:06:31]} g4 {[%emt 0:02:08]} 14. Nh2 {[%emt 0:00:59]} Nc5 {[%emt 0:06:08]} 15. f3 {[%emt 0:05:29]} Nh5 {[%emt 0:06:16]} 16. Nhf1 {[%emt 0:05:05]} Rd8 {[%emt 0:05:44]} 17. O-O-O {[%emt 0:04:39]} a4 {[%emt 0:02:05]} 18. fxg4 {[%emt 0:02:06]} Nf4 {[%emt 0:02:36]} 19. Bxf4 {[%emt 0:00:28]} exf4 {[%emt 0:00:13]} 20. g5 {[%emt 0:05:07]} Be6 {[%emt 0:03:05]} 21. Kb1 {[%emt 0:01:38]} b5 {[%emt 0:05:37]} 22. Nf3 {[%emt 0:03:01]} Rxd1+ {[%emt 0:01:38]} 23. Bxd1 {[%emt 0:00:51]} Bc4 {[%emt 0:02:03]} 24. Be2 {[%emt 0:01:09]} Nxe4 {[%emt 0:01:29]} 25. Bxc4 {[%emt 0:00:39]} bxc4 {[%emt 0:00:30]} 26. gxh6 {[%emt 0:00:52]} Bf6 {[%emt 0:06:01]} 27. N1d2 {[%emt 0:04:50]} Ng3 {[%emt 0:02:49]} 28. Re1 {[%emt 0:01:47]} Qc5 {[%emt 0:02:14]} 29. Ne4 {[%emt 0:02:48]} Nxe4 {[%emt 0:01:02]} 30. Qxe4 {[%emt 0:02:46]} Rb8 {[%emt 0:00:50]} 31. Ng5 {[%emt 0:02:05]} Bxg5 {[%emt 0:04:25]} 32. hxg5 {[%emt 0:01:13]} a3 {[%emt 0:01:40]} 33. h7+ {[%emt 0:03:51]} Kh8 {[%emt 0:00:28]} 34. Qxf4 {[%emt 0:01:07]} Rxb2+ {[%emt 0:03:38]} 35. Ka1 {[%emt 0:02:11]} Rf2 {[%emt 0:04:54]} 36. Re8+ {[%emt 0:00:47]} Kxh7 {[%emt 0:00:10]} 37. Qh4+ {[%emt 0:00:21]} Kg6 {[%emt 0:00:20]} 38. Qh6+ {[%emt 0:03:58]} Kf5 {[%emt 0:00:19]} 39. Qh3+ {[%emt 0:01:28]} Kxg5 {[%emt 0:01:25]} 40. Qg3+ {[%emt 0:00:00]} Kf6 {[%emt 0:00:00]} 41. Qh4+ {[%emt 0:04:30]} Kg7 {[%emt 0:03:50]} 42. Qg4+ {[%emt 0:03:31]} Kf6 {[%emt 0:00:31]} 43. Qh4+ {[%emt 0:00:52]} Kg7 {[%emt 0:01:00]} 44. Qg4+ {[%emt 0:01:28]} 1/2-1/2

[Event "Faroese-ch Candidates 2025"]
[Site "Torshavn"]
[Date "2025.04.14"]
[Round "3.4"]
[White "Logv, Hanus a"]
[Black "Justinussen, Sigurd B."]
[Result "0-1"]
[Annotator "NA RC"]
[ECO "B42"]
[WhiteElo "1744"]
[BlackElo "1948"]
[PlyCount "50"]
[EventDate "2025.04.11"]
[EventType "tourn"]
[EventCountry "FAI"]
[SourceTitle "playchess.com"]
[Source "ChessBase"]
[SourceQuality "1"]
[TimeControl "40/5400+30:900+30"]

1. e4 {[%emt 0:02:06]} c5 {[%emt 0:00:33]} 2. Nf3 {[%emt 0:00:22]} d6 {[%emt 0:00:19]} 3. d4 {[%emt 0:00:10]} cxd4 {[%emt 0:00:58]} 4. Nxd4 {[%emt 0:00:07]} Nf6 {[%emt 0:00:43]} 5. Bd3 {[%emt 0:02:03]} a6 {[%emt 0:04:12]} 6. O-O {[%emt 0:00:46]} e6 {[%emt 0:02:56]} 7. Be3 {[%emt 0:02:23]} Be7 {[%emt 0:01:47]} 8. Nd2 {[%emt 0:02:12]} Bd7 {[%emt 0:08:05]} 9. c3 {[%emt 0:04:52]} Nc6 {[%emt 0:01:38]} 10. f4 {[%emt 0:07:09]} Qc7 {[%emt 0:04:08]} 11. N4f3 {[%emt 0:03:47]} e5 {[%emt 0:07:46]} 12. h3 {[%emt 0:12:48]} O-O {[%emt 0:06:58]} 13. Qb3 {[%emt 0:22:04]} Be6 {[%emt 0:05:05]} 14. Qb6 {[%emt 0:03:00]} Qc8 {[%emt 0:05:21]} 15. c4 {[%emt 0:04:43]} exf4 {[%emt 0:07:24]} 16. Bxf4 {[%emt 0:01:11]} Ne5 {[%emt 0:01:56]} 17. Nxe5 {[%emt 0:03:33]} dxe5 {[%emt 0:00:44]} 18. Be3 {[%emt 0:00:39]} Rd8 {[%emt 0:02:20]} 19. Be2 {[%emt 0:02:03]} Rxd2 {[%emt 0:00:54]} 20. Bxd2 {[%emt 0:05:13]} Bc5+ {[%emt 0:00:15]} 21. Be3 {[%emt 0:00:04]} Bxb6 {[%emt 0:00:34]} 22. Bxb6 {[%emt 0:00:02]} Qc6 {[%emt 0:03:07]} 23. c5 {[%emt 0:00:25]} Nd7 {[%emt 0:01:05]} 24. Rfd1 {[%emt 0:01:24]} Nxb6 {[%emt 0:01:04]} 25. cxb6 {[%emt 0:00:21]} Qxb6+ {[%emt 0:00:31]} 0-1

[Event "Faroese-ch Candidates 2025"]
[Site "Torshavn"]
[Date "2025.04.15"]
[Round "4.2"]
[White "Lamhauge, Eydun"]
[Black "Logv, Hanus a"]
[Result "1/2-1/2"]
[Annotator "NA RC"]
[ECO "C01"]
[WhiteElo "1829"]
[BlackElo "1744"]
[PlyCount "82"]
[EventDate "2025.04.11"]
[EventType "tourn"]
[EventCountry "FAI"]
[SourceTitle "playchess.com"]
[Source "ChessBase"]
[SourceQuality "1"]
[TimeControl "40/5400+30:900+30"]

1. e4 {[%emt 0:11:33]} e6 {[%emt 0:00:05]} 2. d4 {[%emt 0:00:39]} d6 {[%emt 0:00:09]} 3. Nf3 {[%emt 0:00:25]} Ne7 {[%emt 0:00:10]} 4. Nc3 {[%emt 0:00:32]} Ng6 {[%emt 0:00:45]} 5. h4 {[%emt 0:00:50]} Nd7 {[%emt 0:03:24]} 6. h5 {[%emt 0:04:24]} Ne7 {[%emt 0:00:40]} 7. Be2 {[%emt 0:01:25]} Nc6 {[%emt 0:01:10]} 8. Be3 {[%emt 0:06:16]} Be7 {[%emt 0:00:32]} 9. g4 {[%emt 0:02:10]} h6 {[%emt 0:01:36]} 10. Qd2 {[%emt 0:01:08]} b6 {[%emt 0:08:31]} 11. O-O-O {[%emt 0:12:36]} Bb7 {[%emt 0:03:10]} 12. Kb1 {[%emt 0:00:30]} Bf6 {[%emt 0:11:48]} 13. Ne1 {[%emt 0:05:31]} e5 {[%emt 0:05:09]} 14. dxe5 {[%emt 0:04:17]} Bxe5 {[%emt 0:13:30]} 15. f4 {[%emt 0:01:12]} Bxc3 {[%emt 0:01:09]} 16. Qxc3 {[%emt 0:00:21]} Qf6 {[%emt 0:01:28]} 17. e5 {[%emt 0:05:48]} dxe5 {[%emt 0:04:41]} 18. g5 {[%emt 0:03:17]} hxg5 {[%emt 0:02:08]} 19. fxg5 {[%emt 0:00:17]} Qe7 {[%emt 0:07:27]} 20. Bf3 {[%emt 0:02:45]} Qe6 {[%emt 0:12:34]} 21. Bd5 {[%emt 0:05:00]} Qg4 {[%emt 0:02:08]} 22. Nd3 {[%emt 0:01:29]} Qa4 {[%emt 0:06:06]} 23. h6 {[%emt 0:05:59]} gxh6 {[%emt 0:01:26]} 24. Rxh6 {[%emt 0:00:27]} Rxh6 {[%emt 0:00:19]} 25. gxh6 {[%emt 0:00:18]} O-O-O {[%emt 0:00:44]} 26. Bxf7 {[%emt 0:00:43]} Nf6 {[%emt 0:03:01]} 27. Rg1 {[%emt 0:04:51]} Qe4 {[%emt 0:04:01]} 28. Bg5 {[%emt 0:02:49]} Qf5 {[%emt 0:03:55]} 29. Qc4 {[%emt 0:04:28]} Nd4 {[%emt 0:01:19]} 30. Be3 {[%emt 0:05:39]} Ne4 {[%emt 0:00:45]} 31. a4 {[%emt 0:02:33]} Rf8 {[%emt 0:00:18]} 32. Bg6 {[%emt 0:01:00]} Qf3 {[%emt 0:00:37]} 33. Re1 {[%emt 0:01:10]} Nf5 {[%emt 0:01:01]} 34. Qe6+ {[%emt 0:01:29]} Kb8 {[%emt 0:00:23]} 35. Bxf5 {[%emt 0:00:58]} Qxf5 {[%emt 0:00:02]} 36. Qxf5 {[%emt 0:00:27]} Rxf5 {[%emt 0:00:02]} 37. Kc1 {[%emt 0:01:59]} Rh5 {[%emt 0:00:10]} 38. Kd1 {[%emt 0:00:27]} Nf6 {[%emt 0:00:41]} 39. Rg1 {[%emt 0:00:17]} Ng4 {[%emt 0:01:00]} 40. Ke2 {[%emt 0:00:00]} Nxe3 {[%emt 0:00:00]} 41. Kxe3 {[%emt 0:01:54]} Rxh6 {[%emt 0:01:17]} 1/2-1/2

[Event "Faroese-ch Candidates 2025"]
[Site "Torshavn"]
[Date "2025.04.15"]
[Round "4.3"]
[White "Tummasarson, Flovin M."]
[Black "Hojgaard, Brandur"]
[Result "1-0"]
[Annotator "NA RC"]
[ECO "C06"]
[WhiteElo "1837"]
[BlackElo "1861"]
[PlyCount "75"]
[EventDate "2025.04.11"]
[EventType "tourn"]
[EventCountry "FAI"]
[SourceTitle "playchess.com"]
[Source "ChessBase"]
[SourceQuality "1"]
[TimeControl "40/5400+30:900+30"]

1. e4 {[%emt 0:00:03]} e6 {[%emt 0:04:17]} 2. d4 {[%emt 0:00:06]} d5 {[%emt 0:00:05]} 3. Nd2 {[%emt 0:00:05]} Nf6 {[%emt 0:00:24]} 4. e5 {[%emt 0:00:34]} Nfd7 {[%emt 0:00:08]} 5. Bd3 {[%emt 0:00:08]} c5 {[%emt 0:00:09]} 6. c3 {[%emt 0:00:05]} Nc6 {[%emt 0:00:07]} 7. Ne2 {[%emt 0:00:26]} cxd4 {[%emt 0:00:25]} 8. cxd4 {[%emt 0:00:09]} f6 {[%emt 0:00:22]} 9. exf6 {[%emt 0:00:33]} Nxf6 {[%emt 0:00:07]} 10. Nf3 {[%emt 0:00:09]} Bd6 {[%emt 0:00:17]} 11. O-O {[%emt 0:03:48]} Qc7 {[%emt 0:01:41]} 12. Bd2 {[%emt 0:00:13]} O-O {[%emt 0:02:20]} 13. Rc1 {[%emt 0:02:08]} Nh5 {[%emt 0:11:13]} 14. Ng3 {[%emt 0:01:51]} Nxg3 {[%emt 0:12:24]} 15. hxg3 {[%emt 0:00:31]} g6 {[%emt 0:02:11]} 16. Bh6 {[%emt 0:17:17]} Re8 {[%emt 0:06:46]} 17. Qc2 {[%emt 0:01:00]} Qf7 {[%emt 0:00:44]} 18. Ng5 {[%emt 0:04:34]} Qf6 {[%emt 0:04:50]} 19. Nf3 {[%emt 0:01:37]} Bd7 {[%emt 0:07:23]} 20. a3 {[%emt 0:10:10]} Rac8 {[%emt 0:01:37]} 21. Qb3 {[%emt 0:02:19]} Rc7 {[%emt 0:08:17]} 22. Rfe1 {[%emt 0:04:52]} Rec8 {[%emt 0:01:50]} 23. Be3 {[%emt 0:18:32]} Kg7 {[%emt 0:09:02]} 24. Bb1 {[%emt 0:02:52]} Kg8 {[%emt 0:03:00]} 25. Bd3 {[%emt 0:07:30]} Kg7 {[%emt 0:02:15]} 26. Bb1 {[%emt 0:00:16]} Kg8 {[%emt 0:02:43]} 27. Bd3 {[%emt 0:00:11]} Kg7 {[%emt 0:00:33]} 28. Bb1 {[%emt 0:03:15]} Na5 {[%emt 0:02:33]} 29. Rxc7 {[%emt 0:04:01]} Nxb3 {[%emt 0:02:23]} 30. Rxd7+ {[%emt 0:00:14]} Kg8 {[%emt 0:04:59]} 31. Rxd6 {[%emt 0:00:07]} Qe7 {[%emt 0:01:12]} 32. Bf4 {[%emt 0:00:13]} Rc1 {[%emt 0:01:25]} 33. Bxc1 {[%emt 0:05:34]} Qxd6 {[%emt 0:00:46]} 34. Bh6 {[%emt 0:00:38]} Qb6 {[%emt 0:02:55]} 35. Kh2 {[%emt 0:02:28]} Nxd4 {[%emt 0:00:59]} 36. Nxd4 {[%emt 0:00:59]} Qxd4 {[%emt 0:01:06]} 37. Re3 {[%emt 0:00:01]} Qd1 {[%emt 0:01:49]} 38. Rf3 {[%emt 0:00:19]} 1-0

[Event "Faroese-ch Candidates 2025"]
[Site "Torshavn"]
[Date "2025.04.15"]
[Round "4.4"]
[White "Hojsted, Ingi"]
[Black "Davidsen, Rokur"]
[Result "0-1"]
[Annotator "NA RC"]
[ECO "B38"]
[WhiteElo "1841"]
[BlackElo "1824"]
[PlyCount "98"]
[EventDate "2025.04.11"]
[EventType "tourn"]
[EventCountry "FAI"]
[SourceTitle "playchess.com"]
[Source "ChessBase"]
[SourceQuality "1"]
[TimeControl "40/5400+30:900+30"]

1. e4 {[%emt 0:00:03]} c5 {[%emt 0:00:08]} 2. Nf3 {[%emt 0:00:10]} d6 {[%emt 0:00:12]} 3. d4 {[%emt 0:00:08]} cxd4 {[%emt 0:00:08]} 4. Nxd4 {[%emt 0:00:05]} Nf6 {[%emt 0:00:14]} 5. f3 {[%emt 0:00:11]} g6 {[%emt 0:00:18]} 6. c4 {[%emt 0:00:10]} Bg7 {[%emt 0:00:36]} 7. Nc3 {[%emt 0:00:14]} Nc6 {[%emt 0:01:02]} 8. Be3 {[%emt 0:00:29]} Bd7 {[%emt 0:00:40]} 9. Be2 {[%emt 0:00:37]} a6 {[%emt 0:01:57]} 10. O-O {[%emt 0:00:28]} O-O {[%emt 0:00:20]} 11. Qd2 {[%emt 0:00:22]} Rb8 {[%emt 0:04:25]} 12. Rfd1 {[%emt 0:01:46]} Nxd4 {[%emt 0:08:12] B38: Sicilian: Maroczy Bind with 5...Bg7 and 7...0-0.} 13. Bxd4 {[%emt 0:01:10]} b5 {[%emt 0:01:07]} 14. c5 {[%emt 0:08:33]} dxc5 {[%emt 0:15:27]} 15. Bxc5 {[%emt 0:12:16]} Rc8 {[%emt 0:10:49]} 16. e5 {[%emt 0:14:25]} Ne8 {[%emt 0:16:36]} 17. b4 {[%emt 0:18:46]} Bxe5 {[%emt 0:08:11]} 18. Nd5 {[%emt 0:06:56]} Rxc5 {[%emt 0:05:24]} 19. bxc5 {[%emt 0:00:44]} Bxa1 {[%emt 0:03:14]} 20. Rxa1 {[%emt 0:01:07]} Bc6 {[%emt 0:01:29]} 21. Rd1 {[%emt 0:02:43]} Qxd5 {[%emt 0:00:25]} 22. Qxd5 {[%emt 0:00:27]} Bxd5 {[%emt 0:00:07]} 23. Rxd5 {[%emt 0:00:10]} Nf6 {[%emt 0:00:27]} 24. Rd3 {[%emt 0:08:58]} Rc8 {[%emt 0:01:00]} 25. Ra3 {[%emt 0:01:30]} Rc6 {[%emt 0:02:58]} 26. Bd3 {[%emt 0:02:05]} e6 {[%emt 0:02:17]} 27. Ra5 {[%emt 0:05:48]} Nd5 {[%emt 0:04:06]} 28. a4 {[%emt 0:00:58]} Nc7 {[%emt 0:02:19]} 29. axb5 {[%emt 0:02:09]} axb5 {[%emt 0:00:17]} 30. Ra7 {[%emt 0:04:25]} Rxc5 {[%emt 0:00:48]} 31. Rb7 {[%emt 0:00:19]} Kg7 {[%emt 0:00:26]} 32. Kf2 {[%emt 0:00:16]} Kf6 {[%emt 0:01:06]} 33. Ke3 {[%emt 0:00:35]} Ke5 {[%emt 0:01:19]} 34. Be4 {[%emt 0:02:53]} f5 {[%emt 0:03:46]} 35. f4+ {[%emt 0:00:39]} Kd6 {[%emt 0:00:16]} 36. Rb6+ {[%emt 0:00:52]} Kd7 {[%emt 0:00:32]} 37. Bd3 {[%emt 0:00:17]} Rc6 {[%emt 0:02:36]} 38. Rxb5 {[%emt 0:01:08]} Nxb5 {[%emt 0:02:46]} 39. Bxb5 {[%emt 0:00:02]} Kd6 {[%emt 0:00:06]} 40. Bxc6 {[%emt 0:00:00]} Kxc6 {[%emt 0:00:00]} 41. Kd4 {[%emt 0:05:04]} Kd6 {[%emt 0:00:34]} 42. g3 {[%emt 0:02:59]} h6 {[%emt 0:02:10]} 43. h3 {[%emt 0:00:30]} g5 {[%emt 0:01:50]} 44. h4 {[%emt 0:06:44]} gxh4 {[%emt 0:01:07]} 45. gxh4 {[%emt 0:00:07]} h5 {[%emt 0:00:11]} 46. Kd3 {[%emt 0:05:41]} Kd5 {[%emt 0:00:14]} 47. Ke3 {[%emt 0:00:14]} Kc4 {[%emt 0:00:09]} 48. Ke2 {[%emt 0:00:23]} Kd4 {[%emt 0:00:12]} 49. Kf3 {[%emt 0:00:13]} Kd3 {[%emt 0:00:08]} 0-1

[Event "Faroese-ch Candidates 2025"]
[Site "Torshavn"]
[Date "2025.04.16"]
[Round "5.1"]
[White "Davidsen, Rokur"]
[Black "Dahl, Karl M"]
[Result "0-1"]
[Annotator "NA RC"]
[ECO "B51"]
[WhiteElo "1824"]
[BlackElo "1772"]
[PlyCount "82"]
[EventDate "2025.04.11"]
[EventType "tourn"]
[EventCountry "FAI"]
[SourceTitle "playchess.com"]
[Source "ChessBase"]
[SourceQuality "1"]
[TimeControl "40/5400+30:900+30"]

1. e4 {[%emt 0:00:03]} c5 {[%emt 0:00:09]} 2. Nf3 {[%emt 0:00:08]} d6 {[%emt 0:00:09]} 3. Bb5+ {[%emt 0:00:17]} Nd7 {[%emt 0:00:14]} 4. O-O {[%emt 0:00:19]} a6 {[%emt 0:00:08]} 5. Bxd7+ {[%emt 0:00:07]} Bxd7 {[%emt 0:00:17]} 6. c3 {[%emt 0:00:26]} Nf6 {[%emt 0:01:46]} 7. Re1 {[%emt 0:00:34]} e6 {[%emt 0:02:31]} 8. d4 {[%emt 0:00:43]} cxd4 {[%emt 0:00:23]} 9. cxd4 {[%emt 0:00:09]} Be7 {[%emt 0:02:03]} 10. Nc3 {[%emt 0:04:22]} O-O {[%emt 0:04:08]} 11. h3 {[%emt 0:02:08]} Bc6 {[%emt 0:01:18]} 12. Qb3 {[%emt 0:06:23]} b5 {[%emt 0:09:58]} 13. d5 {[%emt 0:03:52]} exd5 {[%emt 0:01:32]} 14. exd5 {[%emt 0:01:25]} Bd7 {[%emt 0:00:30]} 15. Bf4 {[%emt 0:03:50]} Re8 {[%emt 0:03:10]} 16. Nd2 {[%emt 0:17:26]} Bf5 {[%emt 0:05:23]} 17. a4 {[%emt 0:04:09]} bxa4 {[%emt 0:06:45]} 18. Rxa4 {[%emt 0:02:16]} Nd7 {[%emt 0:06:16]} 19. Be3 {[%emt 0:10:47]} Ne5 {[%emt 0:08:58]} 20. Rea1 {[%emt 0:10:01]} Nd3 {[%emt 0:07:29]} 21. Rxa6 {[%emt 0:05:15]} Rxa6 {[%emt 0:04:26]} 22. Rxa6 {[%emt 0:01:12]} Qc8 {[%emt 0:01:49]} 23. Qb5 {[%emt 0:05:24]} Ne5 {[%emt 0:02:55]} 24. Ra7 {[%emt 0:04:06]} h5 {[%emt 0:03:39]} 25. Bd4 {[%emt 0:03:56]} Bf6 {[%emt 0:03:40]} 26. Bxe5 {[%emt 0:02:12]} Rxe5 {[%emt 0:00:48]} 27. Nf3 {[%emt 0:02:27]} Re8 {[%emt 0:00:33]} 28. Qc6 {[%emt 0:01:40]} Qb8 {[%emt 0:02:32]} 29. Qb7 {[%emt 0:01:01]} Qxb7 {[%emt 0:01:59]} 30. Rxb7 {[%emt 0:00:07]} Rc8 {[%emt 0:00:48]} 31. Nb5 {[%emt 0:02:57]} Be4 {[%emt 0:00:39]} 32. Nxd6 {[%emt 0:00:53]} Rc1+ {[%emt 0:00:22]} 33. Kh2 {[%emt 0:01:06]} Bxf3 {[%emt 0:00:09]} 34. gxf3 {[%emt 0:01:07]} Be5+ {[%emt 0:00:12]} 35. Kg2 {[%emt 0:00:03]} Bxd6 {[%emt 0:00:15]} 36. Rd7 {[%emt 0:00:39]} Be5 {[%emt 0:05:32]} 37. Re7 {[%emt 0:00:56]} Bxb2 {[%emt 0:01:29]} 38. d6 {[%emt 0:00:35]} Rd1 {[%emt 0:00:29]} 39. Rb7 {[%emt 0:02:08]} Bf6 {[%emt 0:02:25]} 40. d7 {[%emt 0:00:00]} Kf8 {[%emt 0:00:00]} 41. Ra7 {[%emt 0:02:06]} Bd8 {[%emt 0:01:51]} 0-1

[Event "Faroese-ch Candidates 2025"]
[Site "Torshavn"]
[Date "2025.04.16"]
[Round "5.2"]
[White "Hojgaard, Brandur"]
[Black "Hojsted, Ingi"]
[Result "1-0"]
[Annotator "NA RC"]
[ECO "B07"]
[WhiteElo "1861"]
[BlackElo "1841"]
[PlyCount "83"]
[EventDate "2025.04.11"]
[EventType "tourn"]
[EventCountry "FAI"]
[SourceTitle "playchess.com"]
[Source "ChessBase"]
[SourceQuality "1"]
[TimeControl "40/5400+30:900+30"]

1. d4 {[%emt 0:00:20]} d6 {[%emt 0:02:17]} 2. e4 {[%emt 0:01:46]} Nf6 {[%emt 0:00:08]} 3. Bd3 {[%emt 0:01:52]} e5 {[%emt 0:00:44]} 4. c3 {[%emt 0:03:50]} c6 {[%emt 0:01:58]} 5. Ne2 {[%emt 0:04:34]} Be6 {[%emt 0:04:46]} 6. O-O {[%emt 0:00:33]} Be7 {[%emt 0:03:18]} 7. f4 {[%emt 0:02:34]} Bg4 {[%emt 0:05:06]} 8. Nd2 {[%emt 0:03:36]} Nbd7 {[%emt 0:01:52]} 9. Nf3 {[%emt 0:07:08]} Qc7 {[%emt 0:03:08]} 10. h3 {[%emt 0:05:43]} Bxf3 {[%emt 0:00:18]} 11. Rxf3 {[%emt 0:00:44]} d5 {[%emt 0:03:24]} 12. Qc2 {[%emt 0:04:52]} dxe4 {[%emt 0:02:50]} 13. Bxe4 {[%emt 0:00:17]} exd4 {[%emt 0:01:13]} 14. Nxd4 {[%emt 0:05:49]} O-O {[%emt 0:06:29]} 15. Be3 {[%emt 0:12:16]} Rad8 {[%emt 0:04:26]} 16. Raf1 {[%emt 0:05:22]} Nc5 {[%emt 0:01:37]} 17. Bd3 {[%emt 0:03:00]} Nxd3 {[%emt 0:01:19]} 18. Qxd3 {[%emt 0:00:59]} c5 {[%emt 0:00:26]} 19. Nb5 {[%emt 0:00:46]} Qc6 {[%emt 0:05:12]} 20. Qe2 {[%emt 0:04:57]} a6 {[%emt 0:05:10]} 21. Na3 {[%emt 0:00:36]} Rfe8 {[%emt 0:02:16]} 22. Rd1 {[%emt 0:06:47]} b5 {[%emt 0:11:16]} 23. Rxd8 {[%emt 0:03:07]} Bxd8 {[%emt 0:00:53]} 24. Nc2 {[%emt 0:01:13]} Qd5 {[%emt 0:07:01]} 25. a3 {[%emt 0:02:27]} Qa2 {[%emt 0:04:12]} 26. Ne1 {[%emt 0:01:43]} Ba5 {[%emt 0:05:50]} 27. Nd3 {[%emt 0:08:12]} Bxc3 {[%emt 0:05:12]} 28. Qc2 {[%emt 0:02:57]} Bd4 {[%emt 0:05:19]} 29. Bxd4 {[%emt 0:00:40]} cxd4 {[%emt 0:00:13]} 30. Qc7 {[%emt 0:04:45]} Qc4 {[%emt 0:03:41]} 31. Qa7 {[%emt 0:01:05]} h6 {[%emt 0:03:13]} 32. Qxa6 {[%emt 0:00:25]} Re3 {[%emt 0:00:19]} 33. Ne5 {[%emt 0:01:04]} Qc1+ {[%emt 0:01:18]} 34. Rf1 {[%emt 0:00:19]} Qxb2 {[%emt 0:00:05]} 35. Qc8+ {[%emt 0:00:33]} Kh7 {[%emt 0:00:17]} 36. Nxf7 {[%emt 0:00:53]} Re2 {[%emt 0:00:42]} 37. Qh8+ {[%emt 0:00:39]} Kg6 {[%emt 0:00:07]} 38. Ne5+ {[%emt 0:00:13]} Kh5 {[%emt 0:00:57]} 39. Qxg7 {[%emt 0:00:32]} Qc2 {[%emt 0:00:55]} 40. g4+ {[%emt 0:00:00]} Kh4 {[%emt 0:00:00]} 41. Qxh6+ {[%emt 0:02:46]} Kg3 {[%emt 0:00:50]} 42. Rf3# {[%emt 0:00:12]} 1-0

[Event "Faroese-ch Candidates 2025"]
[Site "Torshavn"]
[Date "2025.04.16"]
[Round "5.3"]
[White "Logv, Hanus a"]
[Black "Tummasarson, Flovin M."]
[Result "1/2-1/2"]
[Annotator "NA RC"]
[ECO "C45"]
[WhiteElo "1744"]
[BlackElo "1837"]
[PlyCount "61"]
[EventDate "2025.04.11"]
[EventType "tourn"]
[EventCountry "FAI"]
[SourceTitle "playchess.com"]
[Source "ChessBase"]
[SourceQuality "1"]
[TimeControl "40/5400+30:900+30"]

1. e4 {[%emt 0:02:46]} e5 {[%emt 0:00:07]} 2. Nf3 {[%emt 0:00:19]} Nc6 {[%emt 0:00:26]} 3. d4 {[%emt 0:00:05]} exd4 {[%emt 0:00:38]} 4. Nxd4 {[%emt 0:00:09]} Bc5 {[%emt 0:00:43]} 5. Be3 {[%emt 0:00:07]} Qf6 {[%emt 0:00:31]} 6. c3 {[%emt 0:00:06]} Nge7 {[%emt 0:00:10]} 7. Be2 {[%emt 0:00:27]} d5 {[%emt 0:00:19]} 8. Bf3 {[%emt 0:07:32]} dxe4 {[%emt 0:10:57]} 9. Bxe4 {[%emt 0:00:22]} Nxd4 {[%emt 0:06:16]} 10. Bxd4 {[%emt 0:00:51]} Bxd4 {[%emt 0:00:43]} 11. Qxd4 {[%emt 0:00:13]} Qxd4 {[%emt 0:00:41]} 12. cxd4 {[%emt 0:00:06]} Nf5 {[%emt 0:01:39]} 13. d5 {[%emt 0:04:40]} Bd7 {[%emt 0:07:29]} 14. Nc3 {[%emt 0:01:14]} O-O-O {[%emt 0:00:42]} 15. O-O {[%emt 0:02:26]} Nd6 {[%emt 0:02:02]} 16. Bd3 {[%emt 0:07:53]} Bf5 {[%emt 0:02:55]} 17. Bxf5+ {[%emt 0:01:19]} Nxf5 {[%emt 0:00:07]} 18. Rac1 {[%emt 0:06:55]} a6 {[%emt 0:02:17]} 19. Rfe1 {[%emt 0:01:33]} h5 {[%emt 0:06:52]} 20. b4 {[%emt 0:05:40]} b5 {[%emt 0:10:22]} 21. a4 {[%emt 0:04:03]} Nd6 {[%emt 0:00:12]} 22. axb5 {[%emt 0:01:41]} axb5 {[%emt 0:00:07]} 23. Re7 {[%emt 0:08:05]} Rde8 {[%emt 0:03:17]} 24. Rce1 {[%emt 0:01:51]} Rxe7 {[%emt 0:02:01]} 25. Rxe7 {[%emt 0:00:09]} Kb7 {[%emt 0:00:20]} 26. f3 {[%emt 0:01:14]} Kb6 {[%emt 0:06:06]} 27. Ne4 {[%emt 0:01:28]} Rd8 {[%emt 0:02:47]} 28. Nc5 {[%emt 0:09:01]} g6 {[%emt 0:01:18]} 29. Nd7+ {[%emt 0:01:49]} Kb7 {[%emt 0:01:27]} 30. Nc5+ {[%emt 0:01:01]} Kb6 {[%emt 0:00:19]} 31. Nd7+ {[%emt 0:00:42]} 1/2-1/2

[Event "Faroese-ch Candidates 2025"]
[Site "Torshavn"]
[Date "2025.04.16"]
[Round "5.4"]
[White "Justinussen, Sigurd B."]
[Black "Lamhauge, Eydun"]
[Result "1-0"]
[Annotator "NA RC"]
[ECO "B12"]
[WhiteElo "1948"]
[BlackElo "1829"]
[PlyCount "75"]
[EventDate "2025.04.11"]
[EventType "tourn"]
[EventCountry "FAI"]
[SourceTitle "playchess.com"]
[Source "ChessBase"]
[SourceQuality "1"]
[TimeControl "40/5400+30:900+30"]

1. e4 {[%emt 0:00:03]} c6 {[%emt 0:00:19]} 2. d4 {[%emt 0:01:27]} d5 {[%emt 0:00:13]} 3. Bd3 {[%emt 0:01:13]} dxe4 {[%emt 0:00:50]} 4. Bxe4 {[%emt 0:00:10]} Nf6 {[%emt 0:00:12]} 5. Bf3 {[%emt 0:00:11]} Nbd7 {[%emt 0:01:07]} 6. c4 {[%emt 0:03:17]} e5 {[%emt 0:05:03]} 7. dxe5 {[%emt 0:04:09]} Nxe5 {[%emt 0:04:08]} 8. Qxd8+ {[%emt 0:01:20]} Kxd8 {[%emt 0:00:12]} 9. Be2 {[%emt 0:01:11]} Bf5 {[%emt 0:04:34]} 10. Bg5 {[%emt 0:02:00]} Bb4+ {[%emt 0:01:58]} 11. Nd2 {[%emt 0:03:08]} Re8 {[%emt 0:04:14]} 12. O-O-O {[%emt 0:03:52]} Ke7 {[%emt 0:03:49]} 13. Ngf3 {[%emt 0:04:17]} Nd3+ {[%emt 0:02:03]} 14. Bxd3 {[%emt 0:00:20]} Bxd3 {[%emt 0:00:19]} 15. Ne5 {[%emt 0:06:02]} Bf5 {[%emt 0:03:22]} 16. Ndf3 {[%emt 0:05:51]} Kf8 {[%emt 0:01:21]} 17. a3 {[%emt 0:01:35]} Ba5 {[%emt 0:04:20]} 18. b4 {[%emt 0:02:38]} Bc7 {[%emt 0:01:04]} 19. Bxf6 {[%emt 0:08:28]} gxf6 {[%emt 0:02:39]} 20. Nd3 {[%emt 0:01:49]} Rad8 {[%emt 0:02:31]} 21. Nc5 {[%emt 0:02:40]} Bf4+ {[%emt 0:00:46]} 22. Kb2 {[%emt 0:02:08]} Re2+ {[%emt 0:00:53]} 23. Kc3 {[%emt 0:00:49]} Rc2+ {[%emt 0:03:41]} 24. Kb3 {[%emt 0:00:13]} Rxd1 {[%emt 0:02:21]} 25. Rxd1 {[%emt 0:00:01]} Rxf2 {[%emt 0:00:33]} 26. Nd4 {[%emt 0:02:55]} Bg6 {[%emt 0:01:21]} 27. Nxb7 {[%emt 0:01:19]} Rxg2 {[%emt 0:01:36]} 28. Nd8 {[%emt 0:01:14]} Rxh2 {[%emt 0:08:13]} 29. N8xc6 {[%emt 0:00:43]} a6 {[%emt 0:00:59]} 30. b5 {[%emt 0:01:51]} axb5 {[%emt 0:02:55]} 31. cxb5 {[%emt 0:00:09]} Be4 {[%emt 0:03:17]} 32. a4 {[%emt 0:05:20]} Bd5+ {[%emt 0:00:44]} 33. Kb4 {[%emt 0:01:05]} Bd6+ {[%emt 0:00:46]} 34. Ka5 {[%emt 0:01:29]} Rb2 {[%emt 0:02:20]} 35. Kb6 {[%emt 0:03:11]} Ke8 {[%emt 0:03:36]} 36. Nf5 {[%emt 0:02:12]} Bb3 {[%emt 0:04:02]} 37. Nxd6+ {[%emt 0:00:57]} Kf8 {[%emt 0:00:10]} 38. Rd4 {[%emt 0:01:18]} 1-0